fUST/lending_fUST_20250206
["ID","MTS","AMOUNT","RATE_DAILY","PERIOD"]
[351750772,1738776643915,-154.25742692,0.00015079,2]
[351750773,1738776643925,-154.25742692,0.00015079,2]
[351750774,1738776643937,-154.25742692,0.00015079,2]
[351750775,1738776643947,-154.25742692,0.00015079,2]
[351750776,1738776643956,-154.25742692,0.00015079,2]
[351750777,1738776643966,-154.25742692,0.00015079,2]
[351750778,1738776643976,-154.25,0.00015079,2]
[351750779,1738776643985,-930.51541008,0.0001508,2]
[351750780,1738776643997,-1000.0,0.00015148,2]
[351750781,1738776644008,-407.84476064,0.00015173,2]
[351750782,1738776644018,-500.0,0.00015173,2]
[351750783,1738776644028,-500.0,0.00015173,2]
[351750784,1738776644038,-500.0,0.00015173,2]
[351750785,1738776644047,-356.16899759,0.00015173,2]
[351750786,1738776644056,-500.8775182,0.00015173,2]
[351750787,1738776644067,-500.0,0.00015173,2]
[351750788,1738776644076,-500.0,0.00015173,2]
[351750789,1738776644086,-719.54,0.00015177,2]
[351750790,1738776644095,-536.03,0.00015177,2]
[351750791,1738776644105,-153.0,0.00015178,2]
[351750792,1738776644115,-153.0,0.00015178,2]
[351750793,1738776644124,-153.0,0.00015178,2]
[351750794,1738776644133,-153.0,0.00015178,2]
[351750795,1738776644143,-153.0,0.00015178,2]
[351750796,1738776644152,-153.0,0.00015178,2]
[351750797,1738776644161,-153.0,0.00015178,2]
[351750798,1738776644171,-153.0,0.00015178,2]
[351750799,1738776644181,-153.0,0.00015178,2]
[351750800,1738776644191,-153.0,0.00015178,2]
[351750801,1738776644200,-153.0,0.00015178,2]
[351750802,1738776644210,-153.0,0.00015178,2]
[351750803,1738776644219,-153.0,0.00015178,2]
[351750804,1738776644229,-153.0,0.00015178,2]
[351750805,1738776644239,-153.0,0.00015178,2]
[351750806,1738776644251,-153.0,0.00015178,2]
[351750807,1738776644260,-153.0,0.00015178,2]
[351750808,1738776644270,-153.0,0.00015178,2]
[351750809,1738776644280,-153.0,0.00015178,2]
[351750810,1738776644290,-153.0,0.00015178,2]
[351750812,1738776644300,-153.0,0.00015178,2]
[351750813,1738776644309,-153.0,0.00015178,2]
[351750815,1738776644319,-153.0,0.00015178,2]
[351750817,1738776644329,-153.0,0.00015178,2]
[351750819,1738776644339,-153.0,0.00015178,2]
[351750820,1738776644349,-500.0,0.00015178,2]
[351750821,1738776644486,-15719.3,0.00015178,2]
[351750822,1738776644501,-500.0,0.00015178,2]
[351750823,1738776644511,-500.0,0.00015178,2]
[351750824,1738776644521,-6040.93,0.00015178,2]
[351750826,1738776644530,-7749.85,0.00015178,2]
[351750828,1738776644540,-3257.43,0.00015178,2]
[351750830,1738776644549,-500.0,0.00015178,2]
[351750832,1738776644558,-500.0,0.00015178,2]
[351750834,1738776644568,-2747.3,0.00015178,2]
[351750836,1738776644578,-1159.69,0.00015178,2]
[351750838,1738776644587,-563.66,0.00015178,2]
[351750840,1738776644597,-500.0,0.00015178,2]
[351750842,1738776644606,-1065.67,0.00015178,2]
[351750844,1738776644615,-500.0,0.00015178,2]
[351750846,1738776644624,-500.0,0.00015178,2]
[351750848,1738776644634,-500.0,0.00015178,2]
[351750849,1738776644643,-2935.36,0.00015178,2]
[351750851,1738776644652,-7301.02,0.00015178,2]
[351750853,1738776644662,-2783.65,0.00015178,2]
[351750854,1738776644672,-12318.66,0.00015178,2]
[351750855,1738776644682,-1277.13,0.00015178,2]
[351750857,1738776644692,-5521.3,0.00015178,2]
[351750858,1738776644702,-593.13,0.00015178,2]
[351750859,1738776644712,-586.6,0.00015178,2]
[351750860,1738776644722,-1399.48,0.00015178,2]
[351750861,1738776644731,-723.85,0.00015178,2]
[351750862,1738776644741,-500.0,0.00015178,2]
[351750863,1738776644753,-500.0,0.00015178,2]
[351750864,1738776644763,-2788.57,0.00015178,2]
[351750865,1738776644774,-8474.43,0.00015178,2]
[351750866,1738776644784,-1049.13,0.00015178,2]
[351750867,1738776644793,-693.24,0.00015178,2]
[351750868,1738776644803,-3418.3,0.00015178,2]
[351750869,1738776644814,-500.0,0.00015178,2]
[351750870,1738776644824,-3187.52,0.00015178,2]
[351750871,1738776644834,-500.0,0.00015178,2]
[351750872,1738776644843,-500.0,0.00015178,2]
[351750873,1738776644853,-500.0,0.00015178,2]
[351750874,1738776644862,-752.95,0.00015178,2]
[351750875,1738776644872,-1049.31,0.00015178,2]
[351750876,1738776644881,-500.0,0.00015178,2]
[351750877,1738776644891,-3010.99,0.00015178,2]
[351750878,1738776644900,-4068.89,0.00015178,2]
[351750879,1738776644910,-500.0,0.00015179,2]
[351750880,1738776644922,-1146.92,0.00015179,2]
[351750881,1738776644938,-500.0,0.00015179,2]
[351750882,1738776644948,-3247.68,0.00015179,2]
[351750883,1738776644958,-500.0,0.00015179,2]
[351750884,1738776644969,-500.0,0.00015179,2]
[351750885,1738776644978,-530.16,0.00015179,2]
[351750886,1738776644988,-586.55,0.00015179,2]
[351750887,1738776644998,-2222.91,0.00015179,2]
[351750888,1738776645008,-548.66,0.00015179,2]
[351750889,1738776645018,-1056.72,0.00015179,2]
[351750890,1738776645027,-352.54752496,0.00015179,2]
[351750891,1738776645038,-1710.19,0.00015179,2]
[351750892,1738776645048,-500.0,0.00015179,2]
[351750893,1738776645058,-1555.33,0.00015179,2]
[351750894,1738776645068,-500.0,0.00015179,2]
[351750895,1738776645078,-500.0,0.00015179,2]
[351750896,1738776645088,-500.0,0.00015179,2]
[351750897,1738776645099,-1162.4,0.00015179,2]
[351750898,1738776645108,-1860.15,0.00015179,2]
[351750899,1738776645118,-1647.23,0.00015179,2]
[351750900,1738776645127,-500.0,0.00015179,2]
[351750901,1738776645137,-848.5,0.00015179,2]
[351750902,1738776645147,-500.0,0.00015179,2]
[351750903,1738776645158,-500.0,0.00015179,2]
[351750904,1738776645168,-500.0,0.00015179,2]
[351750905,1738776645177,-1776.65,0.00015179,2]
[351750906,1738776645187,-1617.65,0.00015179,2]
[351750907,1738776645196,-500.0,0.00015179,2]
[351750908,1738776645206,-685.2,0.00015179,2]
[351750909,1738776645216,-538.45,0.00015179,2]
[351750910,1738776645226,-1100.93,0.00015179,2]
[351750911,1738776645236,-500.0,0.00015179,2]
[351750912,1738776645246,-2121.09,0.00015179,2]
[351750913,1738776645256,-1237.47,0.00015179,2]
[351750914,1738776645266,-2729.9,0.00015179,2]
[351750915,1738776645276,-1010.65,0.00015179,2]
[351750916,1738776645285,-500.0,0.00015179,2]
[351750917,1738776645294,-500.0,0.00015179,2]
[351750918,1738776645304,-1403.64,0.00015179,2]
[351750919,1738776645313,-500.0,0.00015179,2]
[351750920,1738776645324,-500.0,0.00015179,2]
[351750921,1738776645333,-500.0,0.00015179,2]
[351750922,1738776645343,-500.0,0.00015179,2]
[351750923,1738776645352,-500.0,0.00015179,2]
[351750924,1738776645363,-500.0,0.00015179,2]
[351750925,1738776645373,-1182.38,0.00015179,2]
[351750926,1738776645383,-500.0,0.00015179,2]
[351750927,1738776645393,-1545.5,0.00015179,2]
[351750928,1738776645403,-500.0,0.00015179,2]
[351750929,1738776645413,-500.0,0.00015179,2]
[351750930,1738776645422,-751.11,0.00015179,2]
[351750931,1738776645432,-692.17,0.00015179,2]
[351750932,1738776645442,-500.0,0.00015179,2]
[351750933,1738776645451,-500.0,0.00015179,2]
[351750934,1738776645461,-838.79,0.00015179,2]
[351750935,1738776645470,-500.0,0.00015179,2]
[351750936,1738776645480,-1047.74,0.00015179,2]
[351750937,1738776645489,-3507.36,0.00015179,2]
[351750938,1738776645501,-500.0,0.00015179,2]
[351750939,1738776645511,-500.0,0.00015179,2]
[351750940,1738776645520,-500.0,0.00015179,2]
[351750941,1738776645530,-687.68,0.00015179,2]
[351750942,1738776645539,-500.0,0.00015179,2]
[351750943,1738776645550,-160.82808555,0.00015179,2]
[351750944,1738776645559,-495.71475009,0.00015179,2]
[351750945,1738776645569,-9107.91,0.00015179,2]
[351750946,1738776645579,-500.0,0.00015179,2]
[351750947,1738776645588,-500.0,0.00015179,2]
[351750948,1738776645598,-1665.23,0.00015179,2]
[351750949,1738776645608,-500.0,0.00015179,2]
[351750950,1738776645617,-500.0,0.00015179,2]
[351750951,1738776645627,-750.8,0.00015179,2]
[351750952,1738776645636,-3178.84,0.00015179,2]
[351750953,1738776645645,-500.0,0.00015179,2]
[351750954,1738776645654,-564.60401182,0.00015179,2]
[351750955,1738776645664,-41770.33,0.00015179,2]
[351750956,1738776645674,-1745.7,0.00015179,2]
[351750957,1738776645683,-1782.26,0.00015179,2]
[351750958,1738776645693,-500.0,0.00015179,2]
[351750959,1738776645702,-5837.6,0.00015179,2]
[351750960,1738776645712,-512.06,0.00015179,2]
[351750961,1738776645722,-1207.92,0.00015179,2]
[351750963,1738776645731,-670.4,0.00015179,2]
[351750965,1738776645741,-742.19,0.00015179,2]
[351750966,1738776645750,-2659.05,0.00015179,2]
[351750969,1738776645760,-8427.73,0.00015179,2]
[351750972,1738776645770,-558.47,0.00015179,2]
[351750973,1738776645780,-500.0,0.00015179,2]
[351750975,1738776645789,-500.0,0.00015179,2]
[351750977,1738776645799,-1761.43,0.00015179,2]
[351750979,1738776645809,-500.0,0.00015179,2]
[351750981,1738776645818,-500.0,0.00015179,2]
[351750984,1738776645828,-500.0,0.00015179,2]
[351750985,1738776645837,-1030.21,0.00015179,2]
[351750987,1738776645847,-669.88,0.00015179,2]
[351750989,1738776645856,-500.0,0.00015179,2]
[351750991,1738776645865,-2913.21,0.00015179,2]
[351750993,1738776645875,-500.0,0.00015179,2]
[351750995,1738776645884,-500.0,0.00015179,2]
[351750997,1738776645894,-522.53,0.00015179,2]
[351750999,1738776645904,-500.0,0.00015179,2]
[351751001,1738776645914,-124461.46,0.00015179,2]
[351751003,1738776645924,-634.22,0.00015179,2]
[351751005,1738776645935,-500.0,0.00015179,2]
[351751007,1738776645944,-606.85,0.00015179,2]
[351751009,1738776645954,-500.0,0.00015179,2]
[351751011,1738776645966,-5222.12,0.00015179,2]
[351751013,1738776645975,-637.14,0.00015179,2]
[351751015,1738776645984,-35908.11,0.00015179,2]
[351751016,1738776645994,-3163.19,0.00015179,2]
[351751019,1738776646005,-500.0,0.00015179,2]
[351751022,1738776646014,-222.15928418,0.00015179,2]
[351751025,1738776646023,-500.0,0.00015179,2]
[351751028,1738776646032,-500.0,0.00015179,2]
[351751031,1738776646042,-500.0,0.00015179,2]
[351751032,1738776646051,-795.12,0.00015179,2]
[351751035,1738776646060,-500.0,0.00015179,2]
[351751039,1738776646070,-3021.57,0.00015179,2]
[351751042,1738776646080,-500.0,0.00015179,2]
[351751044,1738776646089,-500.0,0.00015179,2]
[351751046,1738776646099,-500.0,0.00015179,2]
[351751049,1738776646109,-500.0,0.00015179,2]
[351751052,1738776646118,-500.0,0.0001518,2]
[351751054,1738776646127,-500.0,0.0001518,2]
[351751056,1738776646136,-500.0,0.0001518,2]
[351751058,1738776646146,-500.0,0.0001518,2]
[351751061,1738776646155,-500.0,0.0001518,2]
[351751063,1738776646165,-500.0,0.0001518,2]
[351751065,1738776646175,-500.0,0.0001518,2]
[351751066,1738776646184,-500.0,0.0001518,2]
[351751068,1738776646193,-500.0,0.0001518,2]
[351751070,1738776646203,-537.73472832,0.0001518,2]
[351751071,1738776646213,-500.0,0.0001518,2]
[351751073,1738776646223,-536.88,0.0001518,2]
[351751076,1738776646232,-500.0,0.0001518,2]
[351751078,1738776646241,-500.0,0.0001518,2]
[351751080,1738776646251,-500.0,0.0001518,2]
[351751081,1738776646261,-539.05970564,0.0001518,2]
[351751083,1738776646271,-500.0,0.0001518,2]
[351751085,1738776646280,-500.0,0.0001518,2]
[351751087,1738776646290,-500.0,0.0001518,2]
[351751090,1738776646300,-336.8415455,0.0001518,2]
[351751092,1738776646310,-500.0,0.0001518,2]
[351751093,1738776646320,-500.0,0.0001518,2]
[351751095,1738776646329,-500.0,0.0001518,2]
[351751097,1738776646340,-502.54,0.0001518,2]
[351751098,1738776646350,-500.0,0.0001518,2]
[351751100,1738776646359,-500.0,0.0001518,2]
[351751102,1738776646369,-500.0,0.0001518,2]
[351751104,1738776646379,-500.0,0.0001518,2]
[351751105,1738776646389,-500.0,0.0001518,2]
[351751107,1738776646398,-698.84,0.0001518,2]
[351751109,1738776646408,-1790.06,0.0001518,2]
[351751111,1738776646418,-500.0,0.0001518,2]
[351751113,1738776646428,-500.0,0.0001518,2]
[351751114,1738776646438,-500.0,0.0001518,2]
[351751116,1738776646447,-673.11,0.0001518,2]
[351751118,1738776646457,-500.0,0.0001518,2]
[351751120,1738776646466,-500.0,0.0001518,2]
[351751121,1738776646476,-500.0,0.0001518,2]
[351751123,1738776646486,-500.0,0.0001518,2]
[351751125,1738776646496,-500.0,0.0001518,2]
[351751126,1738776646506,-852.96,0.0001518,2]
[351751128,1738776646515,-478.71653944,0.0001518,2]
[351751130,1738776646525,-500.0,0.0001518,2]
[351751132,1738776646535,-500.0,0.0001518,2]
[351751133,1738776646544,-500.0,0.0001518,2]
[351751135,1738776646554,-678.83,0.0001518,2]
[351751137,1738776646563,-1289.64,0.0001518,2]
[351751139,1738776646573,-702.43,0.0001518,2]
[351751140,1738776646582,-516.45699356,0.0001518,2]
[351751142,1738776646593,-500.0,0.0001518,2]
[351751144,1738776646602,-540.94,0.0001518,2]
[351751146,1738776646612,-718.47,0.0001518,2]
[351751147,1738776646622,-517.78911673,0.0001518,2]
[351751149,1738776646632,-504.63112114,0.0001518,2]
[351751151,1738776646641,-500.0,0.0001518,2]
[351751153,1738776646651,-837.98,0.0001518,2]
[351751154,1738776646661,-500.0,0.0001518,2]
[351751156,1738776646670,-500.0,0.0001518,2]
[351751158,1738776646680,-500.0,0.0001518,2]
[351751160,1738776646689,-500.0,0.0001518,2]
[351751161,1738776646699,-500.0,0.0001518,2]
[351751163,1738776646709,-500.0,0.0001518,2]
[351751165,1738776646719,-500.0,0.0001518,2]
[351751166,1738776646729,-832.24,0.0001518,2]
[351751168,1738776646738,-500.0,0.0001518,2]
[351751169,1738776646748,-500.0,0.0001518,2]
[351751170,1738776646758,-500.0,0.0001518,2]
[351751171,1738776646768,-541.03,0.0001518,2]
[351751172,1738776646779,-500.0,0.0001518,2]
[351751173,1738776646789,-500.0,0.0001518,2]
[351751174,1738776646935,-201.9818426,0.0001518,2]
[351751175,1738776646949,-534.5336951,0.0001518,2]
[351751176,1738776646958,-500.0,0.0001518,2]
[351751177,1738776646970,-500.0,0.0001518,2]
[351751178,1738776646980,-500.0,0.0001518,2]
[351751179,1738776646989,-500.0,0.0001518,2]
[351751180,1738776647000,-500.0,0.0001518,2]
[351751181,1738776647012,-232.44990168,0.0001518,2]
[351751182,1738776647021,-536.76494534,0.0001518,2]
[351751183,1738776647031,-500.0,0.0001518,2]
[351751184,1738776647040,-681.38,0.0001518,2]
[351751185,1738776647048,-500.0,0.0001518,2]
[351751186,1738776647058,-506.24548495,0.0001518,2]
[351751187,1738776647067,-502.3482059,0.0001518,2]
[351751188,1738776647075,-701.2,0.0001518,2]
[351751189,1738776647084,-500.0,0.0001518,2]
[351751190,1738776647092,-500.0,0.0001518,2]
[351751191,1738776647100,-320.62455143,0.0001518,2]
[351751192,1738776647109,-500.0,0.0001518,2]
[351751193,1738776647117,-500.0,0.0001518,2]
[351751194,1738776647126,-500.0,0.0001518,2]
[351751195,1738776647134,-551.44,0.0001518,2]
[351751196,1738776647142,-500.0,0.0001518,2]
[351751197,1738776647151,-500.0,0.0001518,2]
[351751198,1738776647159,-500.0,0.0001518,2]
[351751199,1738776647169,-1459.14,0.0001518,2]
[351751200,1738776647179,-500.0,0.0001518,2]
[351751201,1738776647187,-500.0,0.0001518,2]
[351751202,1738776647196,-501.15220094,0.0001518,2]
[351751203,1738776647204,-631.58,0.0001518,2]
[351751204,1738776647211,-505.38848824,0.0001518,2]
[351751205,1738776647218,-508.1595289,0.0001518,2]
[351751206,1738776647225,-500.0,0.0001518,2]
[351751207,1738776647232,-500.0,0.0001518,2]
[351751208,1738776647240,-500.0,0.0001518,2]
[351751209,1738776647249,-500.0,0.0001518,2]
[351751210,1738776647260,-500.0,0.0001518,2]
[351751211,1738776647268,-151.0,0.0001518,2]
[351751212,1738776647276,-500.0,0.0001518,2]
[351751213,1738776647283,-151.0,0.0001518,2]
[351751214,1738776647292,-500.0,0.0001518,2]
[351751215,1738776647299,-500.0,0.0001518,2]
[351751216,1738776647307,-500.0,0.0001518,2]
[351751217,1738776647314,-500.0,0.0001518,2]
[351751218,1738776647321,-151.0,0.0001518,2]
[351751219,1738776647329,-151.0,0.0001518,2]
[351751220,1738776647338,-888.89,0.0001518,2]
[351751221,1738776647346,-500.0,0.0001518,2]
[351751222,1738776647356,-500.0,0.0001518,2]
[351751223,1738776647366,-500.0,0.0001518,2]
[351751224,1738776647376,-523.90169399,0.0001518,2]
[351751225,1738776647386,-501.57824832,0.0001518,2]
[351751226,1738776647396,-500.0,0.0001518,2]
[351751227,1738776647406,-500.0,0.0001518,2]
[351751228,1738776647416,-500.0,0.0001518,2]
[351751229,1738776647426,-500.0,0.0001518,2]
[351751230,1738776647436,-559.41917771,0.0001518,2]
[351751231,1738776647446,-831.07,0.0001518,2]
[351751232,1738776647458,-500.0,0.0001518,2]
[351751233,1738776647469,-500.0,0.0001518,2]
[351751234,1738776647479,-500.0,0.0001518,2]
[351751235,1738776647491,-500.0,0.0001518,2]
[351751236,1738776647503,-500.0,0.0001518,2]
[351751237,1738776647514,-500.0,0.0001518,2]
[351751238,1738776647524,-500.0,0.0001518,2]
[351751239,1738776647536,-500.0,0.0001518,2]
[351751240,1738776647546,-500.0,0.0001518,2]
[351751241,1738776647557,-1249.21,0.0001518,2]
[351751242,1738776647567,-500.0,0.0001518,2]
[351751243,1738776647578,-500.0,0.0001518,2]
[351751244,1738776647589,-500.0,0.0001518,2]
[351751245,1738776647599,-500.0,0.0001518,2]
[351751246,1738776647610,-500.0,0.0001518,2]
[351751247,1738776647620,-568.38,0.0001518,2]
[351751248,1738776647632,-500.0,0.0001518,2]
[351751249,1738776647642,-500.0,0.0001518,2]
[351751250,1738776647653,-500.0,0.0001518,2]
[351751251,1738776647664,-500.0,0.0001518,2]
[351751252,1738776647674,-500.0,0.0001518,2]
[351751253,1738776647685,-320.52915712,0.0001518,2]
[351751254,1738776647696,-500.0,0.0001518,2]
[351751255,1738776647706,-500.0,0.0001518,2]
[351751256,1738776647716,-500.0,0.0001518,2]
[351751257,1738776647727,-500.0,0.0001518,2]
[351751258,1738776647737,-500.0,0.0001518,2]
[351751259,1738776647748,-1307.37,0.0001518,2]
[351751260,1738776647759,-500.0,0.0001518,2]
[351751261,1738776647770,-500.0,0.0001518,2]
[351751262,1738776647780,-500.0,0.0001518,2]
[351751263,1738776647791,-503.38929507,0.0001518,2]
[351751264,1738776647801,-720.86,0.0001518,2]
[351751265,1738776647811,-500.0,0.0001518,2]
[351751266,1738776647820,-500.0,0.0001518,2]
[351751267,1738776647830,-861.59,0.0001518,2]
[351751268,1738776647839,-493.30802377,0.0001518,2]
[351751269,1738776647849,-579.91,0.0001518,2]
[351751270,1738776647858,-500.0,0.0001518,2]
[351751271,1738776647869,-500.0,0.0001518,2]
[351751272,1738776647879,-1683.64,0.0001518,2]
[351751273,1738776647889,-761.03,0.0001518,2]
[351751274,1738776647899,-652.03,0.0001518,2]
[351751275,1738776647909,-500.0,0.0001518,2]
[351751276,1738776647920,-500.0,0.0001518,2]
[351751277,1738776647933,-500.0,0.0001518,2]
[351751278,1738776647942,-151.0,0.0001518,2]
[351751279,1738776647952,-489.8,0.0001518,2]
[351751280,1738776647962,-916.12,0.0001518,2]
[351751281,1738776647974,-500.0,0.0001518,2]
[351751282,1738776647983,-529.59,0.0001518,2]
[351751283,1738776647993,-500.0,0.0001518,2]
[351751284,1738776648003,-909.93,0.0001518,2]
[351751285,1738776648021,-500.0,0.0001518,2]
[351751286,1738776648040,-500.0,0.0001518,2]
[351751287,1738776648051,-502.5275146,0.0001518,2]
[351751288,1738776648063,-500.0,0.0001518,2]
[351751289,1738776648074,-500.0,0.0001518,2]
[351751290,1738776648085,-500.0,0.0001518,2]
[351751291,1738776648097,-500.0,0.0001518,2]
[351751292,1738776648109,-500.0,0.0001518,2]
[351751293,1738776648120,-1040.01,0.0001518,2]
[351751294,1738776648131,-478.70808972,0.0001518,2]
[351751295,1738776648142,-827.88,0.0001518,2]
[351751296,1738776648154,-188.0,0.0001518,2]
[351751297,1738776648167,-180.14438665,0.0001518,2]
[351751298,1738776648179,-500.0,0.0001518,2]
[351751299,1738776648191,-500.0,0.0001518,2]
[351751300,1738776648203,-500.0,0.0001518,2]
[351751301,1738776648214,-500.0,0.0001518,2]
[351751302,1738776648226,-1943.26,0.0001518,2]
[351751303,1738776648237,-231.74917396,0.0001518,2]
[351751304,1738776648249,-500.0,0.0001518,2]
[351751305,1738776648261,-500.0,0.0001518,2]
[351751306,1738776648272,-500.0,0.0001518,2]
[351751307,1738776648284,-500.0,0.0001518,2]
[351751308,1738776648295,-500.0,0.0001518,2]
[351751309,1738776648307,-500.0,0.0001518,2]
[351751310,1738776648319,-500.0,0.0001518,2]
[351751311,1738776648330,-500.0,0.0001518,2]
[351751312,1738776648341,-500.0,0.0001518,2]
[351751313,1738776648352,-151.0,0.0001518,2]
[351751314,1738776648363,-151.0,0.0001518,2]
[351751315,1738776648375,-500.0,0.0001518,2]
[351751316,1738776648387,-151.0,0.0001518,2]
[351751317,1738776648399,-151.0,0.0001518,2]
[351751318,1738776648411,-500.0,0.0001518,2]
[351751319,1738776648423,-510.63,0.0001518,2]
[351751320,1738776648435,-500.0,0.0001518,2]
[351751321,1738776648447,-300.0,0.0001518,2]
[351751322,1738776648458,-1095.92,0.0001518,2]
[351751323,1738776648469,-500.0,0.0001518,2]
[351751324,1738776648480,-151.0,0.0001518,2]
[351751325,1738776648491,-151.0,0.0001518,2]
[351751326,1738776648505,-605.33,0.0001518,2]
[351751327,1738776648516,-151.0,0.0001518,2]
[351751328,1738776648528,-500.0,0.0001518,2]
[351751329,1738776648539,-500.0,0.0001518,2]
[351751330,1738776648551,-500.0,0.0001518,2]
[351751331,1738776648563,-500.0,0.0001518,2]
[351751332,1738776648575,-500.0,0.0001518,2]
[351751333,1738776648586,-500.0,0.0001518,2]
[351751334,1738776648598,-511.63,0.0001518,2]
[351751335,1738776648609,-500.0,0.0001518,2]
[351751336,1738776648621,-1075.49,0.0001518,2]
[351751337,1738776648633,-500.0,0.0001518,2]
[351751338,1738776648645,-500.0,0.0001518,2]
[351751339,1738776648657,-500.0,0.0001518,2]
[351751340,1738776648668,-500.0,0.0001518,2]
[351751341,1738776648680,-500.0,0.0001518,2]
[351751342,1738776648691,-500.0,0.0001518,2]
[351751343,1738776648703,-500.0,0.0001518,2]
[351751344,1738776648715,-500.0,0.0001518,2]
[351751345,1738776648726,-590.64,0.0001518,2]
[351751346,1738776648737,-515.21274637,0.0001518,2]
[351751347,1738776648748,-794.49,0.0001518,2]
[351751348,1738776648761,-751.65,0.0001518,2]
[351751349,1738776648772,-500.0,0.0001518,2]
[351751350,1738776648782,-151.0,0.00015181,2]
[351751351,1738776648793,-500.0,0.00015181,2]
[351751352,1738776648803,-151.0,0.00015181,2]
[351751353,1738776648813,-500.0,0.00015181,2]
[351751354,1738776648824,-859.9,0.00015181,2]
[351751355,1738776648834,-500.0,0.00015181,2]
[351751356,1738776648844,-341.55286585,0.00015181,2]
[351751357,1738776648855,-500.0,0.00015181,2]
[351751358,1738776648865,-526.51,0.00015181,2]
[351751359,1738776648875,-500.0,0.00015181,2]
[351751360,1738776648886,-746.1,0.00015181,2]
[351751361,1738776648897,-500.0,0.00015181,2]
[351751362,1738776648907,-500.0,0.00015181,2]
[351751363,1738776648917,-552.29,0.00015181,2]
[351751364,1738776648930,-1756.26,0.00015181,2]
[351751365,1738776648940,-500.0,0.00015181,2]
[351751366,1738776648950,-912.41,0.00015181,2]
[351751367,1738776648960,-2334.8,0.00015181,2]
[351751368,1738776648971,-500.0,0.00015181,2]
[351751369,1738776648981,-500.0,0.00015181,2]
[351751370,1738776648991,-664.16,0.00015181,2]
[351751371,1738776649002,-660.44,0.00015181,2]
[351751372,1738776649014,-1080.47,0.00015181,2]
[351751373,1738776649024,-500.0,0.00015181,2]
[351751374,1738776649034,-544.53,0.00015181,2]
[351751375,1738776649044,-1373.74,0.00015181,2]
[351751376,1738776649054,-500.0,0.00015181,2]
[351751377,1738776649064,-1247.62,0.00015181,2]
[351751378,1738776649074,-918.22,0.00015181,2]
[351751379,1738776649084,-500.0,0.00015181,2]
[351751380,1738776649095,-500.0,0.00015181,2]
[351751381,1738776649105,-3910.97,0.00015181,2]
[351751382,1738776649115,-500.0,0.00015181,2]
[351751383,1738776649126,-500.0,0.00015181,2]
[351751384,1738776649136,-500.0,0.00015181,2]
[351751385,1738776649146,-500.0,0.00015181,2]
[351751386,1738776649155,-4090.46,0.00015181,2]
[351751387,1738776649165,-500.0,0.00015181,2]
[351751388,1738776649175,-500.0,0.00015181,2]
[351751389,1738776649185,-500.0,0.00015181,2]
[351751390,1738776649341,-156.153266,0.00015181,2]
[351751391,1738776649364,-156.153266,0.00015181,2]
[351751392,1738776649374,-500.0,0.00015181,2]